Cogmind - Beta 16 @@@ ROGUE MODE // 2025.12.08 @ 03:19:56 Player: cptwinky Result: Destroyed by H-81 Overseer with Heavy Linear Accelerator Performance ------------- Evolutions (8) 4000 Regions Visited (12) 2400 Robots Destroyed (122) 610 Value Destroyed (5555) 5555 Prototype IDs (33) 660 Alien Tech Used (0) 0 Bonus (1828) 1828 TOTAL SCORE: 15053 Bonus ------- High Alert Combat Kills 330 Follower Combat Kills 698 Registered with UFD 300 Met Optimus in HQ 500 Cogmind --------- Core Integrity 0/1450 Matter 232/300 Energy 150/150 System Corruption 45% Temperature Cool (0) Movement Treading (160) Location -2/Research Parts ------- > --- POWER (2) -------- Micro Antimatter Reactor > --- PROPULSION (4) --- Heavy Treads > --- UTILITY (11) ----- Spectral Analyzer Advanced Terrain Scan Processor Advanced Target Analyzer Core Analyzer Graphene Brace > --- WEAPON (6) ------- Great Maul Force Lance > --- INVENTORY (5) ---- Advanced Heavy Treads Compact Wheel Cloaking Device Advanced Component Analysis Suite Peak State ------------ > --- POWER ------------ Enhanced Fission Core Compact Particle Reactor > --- PROPULSION ------- Armored Medium Treads Armored Medium Treads Armored Medium Treads Wheel > --- UTILITY ---------- Experimental Cooling System Vampiric Humpback Long-range Terrain Scanner Advanced Terrain Scan Processor Core Analyzer Medium Insulated Plating Graphene Brace Improved Hacking Suite > --- WEAPON ----------- Hypervelocity Railgun Hypervelocity Railgun Hypervelocity Railgun Hypervelocity Railgun Gravity Flail > --- INVENTORY -------- Light Nuclear Core Micro Fission Core Light Antimatter Reactor Light Antimatter Reactor Quantum Reactor Armored Medium Treads Armored Medium Treads Armored Medium Treads Armored Medium Treads Armored Medium Treads Heavy Treads Biometal Medium Treads Advanced Heavy Treads Compact Wheel Advanced Sensor Array Cloaking Device Advanced Component Analysis Suite High-powered Tractor Beam Bolt Gun Improved KE Penetrator Micro-nuke Launcher Great Maul Force Lance Force Lance [Rating: 135] Favorites ----------- Power Ion Engine Engine Ion Engine Power Core Enhanced Fission Core Reactor Graviton Reactor Propulsion Armored Huge Wheel Treads Light Treads Leg Thunder Leg Wheel Armored Huge Wheel Utility Large Storage Unit Device Long-range Terrain Scanner Storage Large Storage Unit Processor Advanced Terrain Scan Processor Hackware Makeshift Hacking Suite Protection Improved Medium Armor Plating Weapon Battle Cannon Energy Gun High-powered Shock Rifle Energy Cannon Heavy Ion Cannon Ballistic Gun Coil Gun Ballistic Cannon Battle Cannon Launcher Micro-nuke Launcher Special Weapon Voltaic Drivehammer Impact Weapon Gravity Flail Slashing Weapon Ripper Piercing Weapon Force Lance Build | -11 -10 -10 -8 -6 -6 -6 -5 -5 -5 -4 -3 -2 ------- Run | Yrd Mat Sub Scr Fac Was Fac Fac Was Fac Fac Res Res Slots Evolved 16 | . . . . 8 . . 2 . . 2 2 2 Power 1 | . . . . 1 . . . . . . . . Propulsion 2 | . . . . 2 . . . . . . . . Utility 9 | . . . . 4 . . 2 . . 1 2 . Weapon 4 | . . . . 1 . . . . . 1 . 2 Parts Attached 132 | 6 2 11 9 12 . 6 11 8 7 22 8 30 Power 17 | 1 . 2 1 2 . 2 . 2 1 1 . 5 Engine 6 | 1 . 2 . 2 . 1 . . . . . . Core 4 | . . . . . . 1 . . 1 1 . 1 Reactor 7 | . . . 1 . . . . 2 . . . 4 Propulsion 34 | 2 . 1 1 1 . 1 5 2 . 5 1 15 Treads 13 | 2 . . . . . . . 2 . . . 9 Leg 5 | . . . . . . . 5 . . . . . Wheel 16 | . . 1 1 1 . 1 . . . 5 1 6 Hover . | . . . . . . . . . . . . . Flight . | . . . . . . . . . . . . . Utility 46 | 1 2 1 4 6 . 2 4 2 4 12 3 5 Device 19 | . 1 1 1 1 . 1 . 1 2 7 1 3 Storage 4 | 1 1 . 1 1 . . . . . . . . Processor 9 | . . . 1 1 . . 2 . 1 2 . 2 Hackware 7 | . . . . 2 . 1 2 . . 1 1 . Protection 7 | . . . 1 1 . . . 1 1 2 1 . Artifact . | . . . . . . . . . . . . . Weapon 35 | 2 . 7 3 3 . 1 2 2 2 4 4 5 Energy Gun 3 | . . 2 . 1 . . . . . . . . Energy Cannon 1 | . . . . . . . 1 . . . . . Ballistic Gun 12 | 2 . . 2 . . . . . 2 . 4 2 Ballistic Cannon 7 | . . 3 . 1 . 1 . . . . . 2 Launcher 5 | . . 1 1 . . . . 1 . 1 . 1 Special Weapon 1 | . . . . 1 . . . . . . . . Impact Weapon 2 | . . . . . . . . 1 . 1 . . Slashing Weapon 2 | . . 1 . . . . 1 . . . . . Piercing Weapon 2 | . . . . . . . . . . 2 . . Special Melee Weapon . | . . . . . . . . . . . . . Unidentified Prototypes 9 | . . . 1 . . . . 2 1 2 . 3 Parts Lost 61 | . . 4 1 1 . 7 4 . 2 2 . 40 Power 12 | . . 1 . 1 . 3 . . 2 1 . 4 Propulsion 21 | . . 1 . . . 1 3 . . 1 . 15 Utility 12 | . . 1 . . . . 1 . . . . 10 Weapon 16 | . . 1 1 . . 3 . . . . . 11 Highest Loss Streak 11 | . . 2 1 1 . 3 3 . 2 1 . 11 To Critical Strikes . | . . . . . . . . . . . . . Average Backups 13 | 2 5 11 11 18 25 28 13 3 4 4 20 19 Power 1 | . 1 1 . 1 2 1 . . . . 2 4 Propulsion 1 | . 1 1 1 . . . . . . . 7 8 Utility 4 | . 1 2 3 9 14 16 8 1 1 1 5 3 Weapon 4 | . 2 5 5 7 8 9 4 2 3 2 4 3 Tool/Special . | . . . . . . . . . . . . . Unused Backups 37 | . . 3 7 1 . . 19 . . . . 7 Power 4 | . . . 1 . . . . . . . . 3 Propulsion 4 | . . . 2 . . . . . . . . 2 Utility 20 | . . . 2 1 . . 15 . . . . 2 Weapon 8 | . . 3 2 . . . 3 . . . . . Tool/Special 1 | . . . . . . . 1 . . . . . Average Slot Usage (%) 81 | . 88 99 90 76 77 72 43 51 78 83 94 63 Engine 6 | . 14 13 13 5 6 4 . 1 5 . . . Core 1 | . . . . . . 1 2 . 2 6 9 3 Reactor 2 | . . . . 6 6 4 . 7 2 . . 3 Treads 9 | . 28 26 4 . . . . 9 11 8 . 6 Wheel 7 | . . 1 14 13 13 12 4 . . 2 19 9 Device 8 | . 3 14 8 . . 2 2 2 11 18 14 6 Storage 7 | . 14 14 14 6 6 6 2 . . . 4 4 Processor 7 | . . . . 12 13 13 10 5 10 15 19 11 Hackware 3 | . . . . 7 6 8 4 5 5 5 7 1 Protection 3 | . . . 5 2 6 1 . 3 10 5 . 1 Energy Gun 1 | . . 3 . 4 . 3 . . . . . . Ballistic Gun 6 | . 28 8 2 13 10 3 . . 8 5 11 6 Ballistic Cannon 8 | . . 15 25 . 1 2 . . . . . 1 Impact Weapon 1 | . . . . . . . . 2 5 7 3 . Piercing Weapon 1 | . . . . . . . . . . 5 3 3 Peak Build Rating 135 | 6 9 16 39 83 82 84 69 76 95 120 116 135 Average Rating 58 | 4 6 12 20 77 79 73 41 63 87 106 108 95 On Entrance 52 | . 6 9 15 39 81 77 57 32 76 91 89 115 Avg Prop Armor Cover (%) 17 | . . 11 11 . . . 43 24 9 14 . 9 Naked Turns 10 | . . . . . . . 10 . . . . . Heaviest Build 275 | 13 29 32 53 243 243 242 232 45 44 240 263 275 Greatest Support 155 | 40 40 40 37 56 56 56 69 70 70 155 61 141 Greatest Overweight (x) 78 | . . 1 1 4 4 8 22 . . 4 5 78 Average Overweight (x) 1 | . . . . 4 4 4 1 . . . 4 4 Largest Inventory Capacity 35 | 8 15 15 15 35 35 35 35 5 5 35 35 35 Average Capacity 20 | 7 14 15 15 34 35 35 17 5 5 9 35 35 Most Carried 32 | 5 7 15 15 26 27 32 29 5 5 12 31 32 Average Carried 14 | 2 5 13 14 19 26 29 14 4 4 5 22 21 Final Capacity 35 | 8 15 15 15 35 35 35 5 5 5 35 35 5 Final Carried 30 | 5 7 14 15 26 27 29 5 5 5 12 30 5 Class Distribution -------------------- 46% | Mutant 13% | Hauler-Gunner 11% | Hauler-Mutant 7% | Scavenger-Mutant 7% | Hauler-Tank 5% | Assassin 3% | Hauler-Gladiator Dominant Class ---------------- Mutant | -10/Materials Mutant | -10/Subcaves Mutant | -8/Scraptown Hauler-Gunner | -6/Factory Hauler-Mutant | -6/Waste Hauler-Mutant | -6/Factory Mutant | -5/Factory Mutant | -5/Waste Scavenger-Mutant | -5/Factory Assassin | -4/Factory Hauler-Gladiator | -3/Research Hauler-Gunner | -2/Research Resources | -11 -10 -10 -8 -6 -6 -6 -5 -5 -5 -4 -3 -2 ----------- Run | Yrd Mat Sub Scr Fac Was Fac Fac Was Fac Fac Res Res Matter Collected 4099 | 280 17 374 365 555 . 350 62 290 119 338 277 1072 Remotely 61 | . . . . . . . . . . . . 61 Salvage Created 6234 | 120 . 294 337 804 . 705 58 . 130 977 475 2334 Parts 289 | 9 . 25 19 35 . 42 1 . 1 30 23 104 Haulers Intercepted 2 | . . . . 1 . . . . . 1 . . Recyclers Shooed 3 | . . . . . . . . . . . . 3 Parts Field Recycled . | . . . . . . . . . . . . . Retrieved Matter . | . . . . . . . . . . . . . Parts Self-Destructed 19 | . . 17 2 . . . . . . . . . Prevented . | . . . . . . . . . . . . . Parts Restored 1 | . . . . . . . . . . 1 . . Broken 1 | . . . . . . . . . . 1 . . Kills | -11 -10 -10 -8 -6 -6 -6 -5 -5 -5 -4 -3 -2 ------- Run | Yrd Mat Sub Scr Fac Was Fac Fac Was Fac Fac Res Res Combat Hostiles Destroyed 92 | . . 10 8 11 . 23 1 . . 6 5 28 Melee 18 | . . 1 . 1 . 4 1 . . 5 . 6 Guns 22 | . . 1 2 4 . . . . . . 5 10 Cannons 11 | . . 2 3 2 . 3 . . . . . 1 AOE 39 | . . 6 3 4 . 16 . . . . . 10 Classes Destroyed 21 | 2 . 3 4 7 . 1 . . . . 1 3 Worker 3 | . . . . . . 1 . . . . 1 1 Builder 6 | . . . . 1 . 2 . . . . . 3 Tunneler 4 | 2 . . . 1 . . . . . 1 . . Hauler 2 | . . . . 1 . . . . . 1 . . Recycler 11 | 1 . . . 1 . . . . 1 4 . 4 Carrier 1 | . . . . . . . . . . . . 1 Operator 2 | . . . . 1 . . . . 1 . . . Watcher 1 | . . . . . . . . . . . 1 . Swarmer 18 | . . 8 . . . 6 . . . 1 . 3 Grunt 27 | . . . . 4 . 13 . . . . 4 6 Brawler 1 | . . . . 1 . . . . . . . . Sentry 9 | . . . . 2 . 4 . . . 2 1 . Specialist 1 | . . . . . . . . . . . . 1 Hunter 9 | . . . . . . . . . . . . 9 Programmer 17 | . . . . 4 . . 1 . . 3 . 9 Cobbler 1 | . . 1 . . . . . . . . . . Subdweller 2 | . . 2 . . . . . . . . . . Federalist 2 | . . . 2 . . . . . . . . . Ranger 1 | . . . 1 . . . . . . . . . Guru 1 | . . . 1 . . . . . . . . . Scrapper 4 | . . . 4 . . . . . . . . . Best Kill Streak 17 | 3 . 3 4 8 . 17 1 . 1 2 5 7 Combat Bots Only 15 | . . 3 4 6 . 15 1 . . 2 4 6 Max Kills in Single Turn 4 | 1 . 2 2 2 . 4 1 . 1 1 2 3 Gunslinging 1 | . . . . . . . . . . . . 1 Exploded 4 | . . 2 2 2 . 4 . . . . . 2 Melee 1 | . . 1 . 1 . 1 1 . . 1 . 1 Uniques/NPCs Destroyed . | . . . . . . . . . . . . . Combat | -11 -10 -10 -8 -6 -6 -6 -5 -5 -5 -4 -3 -2 -------- Run | Yrd Mat Sub Scr Fac Was Fac Fac Was Fac Fac Res Res Hostile Shots Fired 1145 | . . 47 31 83 1 236 65 . 7 39 16 620 Missed 347 | . . 17 9 32 . 97 13 . 2 12 8 157 Hits 798 | . . 30 22 51 1 139 52 . 5 27 8 463 Melee 11 | . . . . . 1 . 10 . . . . . Projectile 787 | . . 30 22 51 . 139 42 . 5 27 8 463 AOE 13 | . . . . . . . 1 . 11 . . 1 Critical Strikes 47 | . . 2 2 5 1 . 7 . . 1 . 29 Actively Blocked 29 | . . . . . . . . . . . . 29 Part Disruptions 3 | . . . . . . . . . . . . 3 Damage Taken 15420 | . . 584 454 757 52 981 1247 . 556 443 178 10168 Core 1747 | . . 43 47 56 . 136 383 . 107 35 18 922 Absorbed by Shields 561 | . . . . . . 448 20 . . 93 . . Ignored by Resistances 37 | . . . . . . . . . . 27 . 10 Regen/Repaired (Parts) 731 | . . . . 59 . . . 194 171 307 . . Core Remaining (%) 76 | 100 . . 64 . . 57 . . 44 95 97 . Volleys Fired 181 | 5 . 37 30 28 . 20 7 . 1 . 8 45 Largest 4 | 2 . 2 2 3 . 3 2 . 2 . 4 4 Hottest 160 | 40 . 66 66 120 . 110 105 . 66 . 160 160 Shots Fired 379 | 10 . 61 52 65 1 39 14 . 2 . 32 103 Gun 221 | 10 . 29 18 57 1 7 . . 2 . 32 65 Cannon 129 | . . 27 32 5 . 24 14 . . . . 27 Launcher 28 | . . 5 2 2 . 8 . . . . . 11 Special 1 | . . . . 1 . . . . . . . . Kinetic 296 | 10 . 30 50 42 1 30 7 . 2 . 32 92 Thermal 33 | . . 26 . . . . 7 . . . . . Explosive 28 | . . 5 2 2 . 8 . . . . . 11 Electromagnetic 22 | . . . . 21 . 1 . . . . . . Robot Hit Streak 15 | 4 . 14 10 15 . 12 7 . 1 . 5 15 Robot Miss Streak 3 | 1 . 3 3 2 . 3 1 . 1 . 3 3 Penetration Max 2 | . . . . . . 1 . . . . 1 2 Secondary Targets 4 | . . . . 1 . . . . . . 2 1 Max Gunslinging Chain 1 | . . . . 1 . . . . . . 1 1 Shots Hit Robots 315 | 7 . 41 34 47 . 41 21 . 2 28 14 80 Core Hits 221 | 4 . 21 13 26 . 51 5 . 1 9 13 78 Critical Kills 16 | . . . . 1 . . . . . . 7 8 Critical Parts Destroyed 17 | . . . 1 1 . . . . . 5 3 7 Critical Strikes 51 | . . 1 1 3 . 4 5 . . 8 11 18 Destroy 29 | . . 1 1 2 . . . . . . 11 14 Blast 3 | . . . . 1 . 1 1 . . . . . Smash 6 | . . . . . . . . . . 5 . 1 Sever 7 | . . . . . . 3 4 . . . . . Impale 6 | . . . . . . . . . . 3 . 3 Melee Attacks 158 | . . 2 . 9 11 19 14 . 2 60 . 41 Impact 41 | . . . . . . . . . 2 34 . 5 Slashing 55 | . . 2 . 9 11 19 14 . . . . . Piercing 62 | . . . . . . . . . . 26 . 36 Sneak Attacks 13 | . . . . 1 . 2 . . 1 8 . 1 Combat Hostiles . | . . . . . . . . . . . . . Follow-up Attacks 6 | . . . . . . . . . . 5 . 1 Damage Inflicted 14673 | 89 7 919 1000 2027 . 3230 592 . 142 1657 180 4830 Guns 2587 | 89 . 218 262 861 . 145 . . 21 . 180 811 Cannons 2092 | . . 356 441 106 . 438 278 . . . . 473 Explosions 5968 | . . 316 297 880 . 1996 . . . . . 2479 Melee 3922 | . . 29 . 145 . 651 313 . 121 1651 . 1012 Ramming 69 | . 7 . . . . . 1 . . 6 . 55 Kinetic 4186 | 89 . 398 703 784 . 583 144 . 21 . 180 1284 Thermal 310 | . . 176 . . . . 134 . . . . . Explosive 5440 | . . 316 297 352 . 1996 . . . . . 2479 Electromagnetic 711 | . . . . 711 . . . . . . . . Impact 1070 | . . . . 35 . . . . 121 842 . 72 Slashing 1138 | . . 29 . 145 . 651 313 . . . . . Piercing 1749 | . . . . . . . . . . 809 . 940 Highest Corruption 45 | . . . . 8 4 4 10 10 10 1 . 45 Average Corruption 7 | . . . . 6 4 4 5 10 8 1 . 14 Corruption Purged 10 | . . . . 5 . . . . 5 . . . Corruption Blocked . | . . . . . . . . . . . . . Effects 115 | . . . . 30 9 11 5 11 16 5 . 28 Message Errors 31 | . . . . 7 2 5 4 2 2 2 . 7 Matter Fused 29 | . . . . 7 4 2 . 5 6 1 . 4 Heat Flow Errors 16 | . . . . 4 . . 1 1 4 . . 6 Energy Discharges 10 | . . . . 3 1 3 . . 2 . . 1 Parts Rejected 3 | . . . . . . . . . . . . 3 Parts Fused 1 | . . . . . . . . . . . . 1 Data Loss (minor) 12 | . . . . 4 1 . . 2 1 1 . 3 Data Loss (major) 7 | . . . . 2 . . . 1 1 1 . 2 Misfires 5 | . . . . 2 1 1 . . . . . 1 Weapon Failures 1 | . . . . 1 . . . . . . . . Overload Shots . | . . . . . . . . . . . . . Overflow Damage 1238 | . . 6 10 159 . 42 . . 61 723 . 237 Projectiles 72 | . . 5 . . . 6 . . . . . 61 Explosions 257 | . . 1 10 159 . 1 . . . . . 86 Melee 909 | . . . . . . 35 . . 61 723 . 90 Knockbacks 22 | . . 1 3 1 . 6 . . 2 3 . 6 Impact 6 | . . . . 1 . . . . 1 3 . 1 Kinetic 15 | . . 1 3 . . 6 . . . . . 5 Secondary 1 | . . . . . . . . . 1 . . . Self-Inflicted Damage 351 | . . 73 52 6 . . . . . . . 220 Shots 14 | . . 4 2 1 . . . . . . . 7 Rammed 4 | . 1 . . . . . . . . 1 . 2 Targets Rammed 6 | . 1 . . . . . 2 . . 1 . 2 Kicked 2 | . . . . . . . 2 . . . . . Crushed . | . . . . . . . . . . . . . Highest Temperature 528 | . . 528 220 264 . 276 144 259 225 . . 256 Average Temperature 89 | . . 265 56 79 . 126 54 136 94 . . 93 Received Heat Transfer 1790 | . . 648 229 219 . 345 181 . 21 42 33 72 Effects 3 | . . 3 . . . . . . . . . . Shutdowns 1 | . . 1 . . . . . . . . . . Interference 2 | . . 2 . . . . . . . . . . Siege Activations . | . . . . . . . . . . . . . Martial Activations . | . . . . . . . . . . . . . Shielding Activations . | . . . . . . . . . . . . . Robots Disrupted . | . . . . . . . . . . . . . Combat Hostiles . | . . . . . . . . . . . . . Robots Corrupted 5 | . . . . . . . . . 1 3 . 1 Combat Hostiles 2 | . . . . . . . . . . 1 . 1 Parts Fried 18 | . . . . 6 . . . . 3 6 . 3 Impact Corruptions 16 | . . . . . . . . . 3 12 . 1 Robots Melted . | . . . . . . . . . . . . . Combat Hostiles . | . . . . . . . . . . . . . Parts Melted 4 | . . . 4 . . . . . . . . . Heat Transferred 685 | . . 500 . . . . 185 . . . . . Parts Sabotaged . | . . . . . . . . . . . . . Parts Stolen . | . . . . . . . . . . . . . Parts Stripped . | . . . . . . . . . . . . . Power Chain Reactions . | . . . . . . . . . . . . . Alert | -11 -10 -10 -8 -6 -6 -6 -5 -5 -5 -4 -3 -2 ------- Run | Yrd Mat Sub Scr Fac Was Fac Fac Was Fac Fac Res Res Maximum Alert Level 2 | . . . . . . 2 1 . 2 1 . 2 Low Security (%) 74 | 100 100 . . 100 100 52 77 100 19 83 100 35 Level 1 12 | . . . . . . 1 22 . 57 16 . 16 Level 2 13 | . . . . . . 45 . . 22 . . 48 Level 3 . | . . . . . . . . . . . . . Level 4 . | . . . . . . . . . . . . . Level 5 . | . . . . . . . . . . . . . High Security . | . . . . . . . . . . . . . Max Security . | . . . . . . . . . . . . . Peak Influence 519 | 10 13 . . 182 7 519 238 71 452 289 99 518 Initial 238 | . . . . . 7 . 238 59 . 190 44 41 Average 139 | 1 2 . . 45 . 255 182 20 263 134 33 293 Influence Increases 4176 | 15 13 240 . 467 3 691 152 42 841 453 140 1119 Destroy 0b10 Robot/C 1900 | . . 160 . 220 . 460 20 . 240 120 100 580 Destroy 0b10 Robot/NC 160 | 15 . . . 25 . 15 . . 25 30 10 40 Destroy Leader 458 | . . 20 . 82 . 100 10 . 72 42 22 110 Allied During Kill 199 | . . . . . . . . . 199 . . . Successful Hack 99 | . 13 . . 51 . . . . . 3 6 26 Disable Machine 210 | . . . . 30 . 60 15 . 75 30 . . Anti-Garrison Action 200 | . . . . . . . . . . 200 . . Destroy Structure 680 | . . . . 29 3 56 2 42 200 28 2 318 Lose Combat Pursuer 270 | . . 60 . 30 . . 105 . 30 . . 45 Influence Decreases 3809 | 15 13 178 62 447 23 203 470 212 452 757 151 826 Entered New Map 709 | . . . 62 . 13 . 250 111 . 199 41 33 Time Decay 2331 | 15 13 168 . 356 10 142 180 101 248 538 110 450 Lost Part 494 | . . 10 . 10 . 61 40 . 10 20 . 343 Lost Ally 194 | . . . . . . . . . 194 . . . Purge Threat 81 | . . . . 81 . . . . . . . . Squads Dispatched 34 | . . . . 5 . 7 . . 4 4 1 13 Investigation 8 | . . . . 1 . 2 . . . 1 1 3 Extermination 10 | . . . . 3 . . . . 1 2 . 4 Reinforcement 8 | . . . . 1 . 1 . . 2 1 . 3 Assault 1 | . . . . . . 1 . . . . . . Garrison 7 | . . . . . . 3 . . 1 . . 3 Intercept . | . . . . . . . . . . . . . Searches Triggered . | . . . . . . . . . . . . . Construction Impeded 4 | . . . . . . 1 . . 1 . . 2 Haulers Reinforced . | . . . . . . . . . . . . . Active Scanning Responses . | . . . . . . . . . . . . . Cargo Convoy Interrupts . | . . . . . . . . . . . . . Stealth | -11 -10 -10 -8 -6 -6 -6 -5 -5 -5 -4 -3 -2 --------- Run | Yrd Mat Sub Scr Fac Was Fac Fac Was Fac Fac Res Res Distress Signals 6 | . . . . . . 2 . . . . 1 3 Communications Jammed . | . . . . . . . . . . . . . Distress Signals . | . . . . . . . . . . . . . Times Spotted 169 | . . 13 18 19 8 21 14 6 11 10 6 43 Peak Tracking Total 12 | . . 6 5 5 6 7 5 6 3 3 5 12 Tactical Retreats 12 | . . 1 . 1 1 . 5 1 1 . . 2 Traps | -11 -10 -10 -8 -6 -6 -6 -5 -5 -5 -4 -3 -2 ------- Run | Yrd Mat Sub Scr Fac Was Fac Fac Was Fac Fac Res Res Traps Triggered 9 | . . . . 2 . 1 2 . . 3 1 . Indirectly . | . . . . . . . . . . . . . Trap Hack Attempts . | . . . . . . . . . . . . . Triggered . | . . . . . . . . . . . . . Disarmed . | . . . . . . . . . . . . . Reprogrammed . | . . . . . . . . . . . . . Reused . | . . . . . . . . . . . . . Traps Extracted . | . . . . . . . . . . . . . Installed . | . . . . . . . . . . . . . Triggered . | . . . . . . . . . . . . . Most Traps Carried 1 | . . . 1 . . . . . . . . . Machines | -11 -10 -10 -8 -6 -6 -6 -5 -5 -5 -4 -3 -2 ---------- Run | Yrd Mat Sub Scr Fac Was Fac Fac Was Fac Fac Res Res Machines Disabled 20 | . . 1 5 2 . 4 1 . 5 2 . . Max in Single Turn 3 | . . 1 1 1 . 3 1 . . 1 . . Garrison Access 1 | . . . . . . . . . . 1 . . Machines Repaired . | . . . . . . . . . . . . . Machines Dismantled . | . . . . . . . . . . . . . Machines Sabotaged . | . . . . . . . . . . . . . Overloaded Fab Kills . | . . . . . . . . . . . . . Hacking | -11 -10 -10 -8 -6 -6 -6 -5 -5 -5 -4 -3 -2 --------- Run | Yrd Mat Sub Scr Fac Was Fac Fac Was Fac Fac Res Res Machines Accessed 35 | . 3 1 2 13 . 1 . . 3 6 1 5 Terminals 15 | . 2 . . 6 . . . . 2 3 . 2 Fabricators 1 | . . . . 1 . . . . . . . . Repair Stations 5 | . . . . 2 . . . . . 2 . 1 Recycling Units 4 | . 1 . . 3 . . . . . . . . Scanalyzers 3 | . . . . 1 . . . . . . 1 1 Garrison Access 4 | . . . . . . 1 . . 1 1 . 1 Total Hacks 99 | . 12 1 9 36 . 2 . . 7 16 4 12 Successful 38 | . 6 1 9 14 . . . . . 4 2 2 Failed 60 | . 6 . . 22 . 2 . . 7 12 2 9 Catastrophic 9 | . 1 . . 4 . . . . 2 . . 2 Database Lockouts 1 | . . . . . . . . . . . . 1 Manual 28 | . 8 . . 9 . . . . 3 5 . 3 Terminals 41 | . 7 . . 19 . . . . 5 7 . 3 Fabricators 4 | . . . . 4 . . . . . . . . Repair Stations 11 | . . . . 3 . . . . . 6 . 2 Recycling Units 10 | . 5 . . 5 . . . . . . . . Scanalyzers 12 | . . . . 5 . . . . . . 4 3 Garrison Access 11 | . . . . . . 2 . . 2 3 . 4 Terminal Hacks 20 | . 4 1 9 6 . . . . . . . . Part Schematic 2 | . 1 . . 1 . . . . . . . . Robot Analysis 12 | . 3 . 8 1 . . . . . . . . Branch Access Points 1 | . . . . 1 . . . . . . . . Unreport Threat 1 | . . . . 1 . . . . . . . . Locate Traps 1 | . . . . 1 . . . . . . . . Zone Layout 1 | . . . . 1 . . . . . . . . Proto ID Catalog 2 | . . 1 1 . . . . . . . . . Fabricator Hacks 1 | . . . . 1 . . . . . . . . Network Status 1 | . . . . 1 . . . . . . . . Repair Station Hacks 6 | . . . . 2 . . . . . 3 . 1 Scan Component 4 | . . . . 1 . . . . . 2 . 1 Repair 2 | . . . . 1 . . . . . 1 . . Recycling Unit Hacks 2 | . 1 . . 1 . . . . . . . . Retrieve Components 2 | . 1 . . 1 . . . . . . . . Scanalyzer 5 | . . . . 2 . . . . . . 2 1 Insert Component 2 | . . . . 1 . . . . . . 1 . Analyze 1 | . . . . . . . . . . . 1 . Retrieve Study 2 | . . . . 1 . . . . . . . 1 Garrison Access Hacks . | . . . . . . . . . . . . . Unauthorized Hacks 4 | . 1 . . 2 . . . . . 1 . . Terminals 1 | . . . . 1 . . . . . . . . Botnet 1 | . . . . 1 . . . . . . . . Fabricators 1 | . . . . 1 . . . . . . . . Haulers 1 | . . . . 1 . . . . . . . . Repair Stations . | . . . . . . . . . . . . . Recycling Units 1 | . 1 . . . . . . . . . . . Reject 1 | . 1 . . . . . . . . . . . Scanalyzers . | . . . . . . . . . . . . . Garrison Access 1 | . . . . . . . . . . 1 . . Jam 1 | . . . . . . . . . . 1 . . Data Cores Recovered 1 | . . . . 1 . . . . . . . . Used . | . . . . . . . . . . . . . Hacking Detections 32 | . 3 . . 13 . 1 . . 3 6 1 5 Full Trace Events 5 | . . . . 1 . 1 . . . . . 3 Feedback Events . | . . . . . . . . . . . . . Feedback Blocked . | . . . . . . . . . . . . . Robot Schematics Acquired . | . . . . . . . . . . . . . Robots Built . | . . . . . . . . . . . . . Authchips . | . . . . . . . . . . . . . Time . | . . . . . . . . . . . . . Total Robot Build Rating . | . . . . . . . . . . . . . Part Schematics Acquired 11 | . 1 . . 8 . . 1 . . . 1 . Parts Built . | . . . . . . . . . . . . . Authchips . | . . . . . . . . . . . . . Time . | . . . . . . . . . . . . . Total Part Build Rating . | . . . . . . . . . . . . . Part Studies Acquired 2 | . . . . 1 . . . . . . . 1 Parts Repaired 2 | . . . . 1 . . . . . 1 . . Time 78 | . . . . 22 . . . . . 56 . . Parts Recycled . | . . . . . . . . . . . . . Recycled Matter . | . . . . . . . . . . . . . Retrieved Matter . | . . . . . . . . . . . . . Retrieved Components . | . . . . . . . . . . . . . Parts Scanalyzed 2 | . . . . 1 . . . . . . 1 . Part Schematics Acquired 1 | . . . . . . . . . . . 1 . Parts Damaged 1 | . . . . 1 . . . . . . . . Bothacking | -11 -10 -10 -8 -6 -6 -6 -5 -5 -5 -4 -3 -2 ------------ Run | Yrd Mat Sub Scr Fac Was Fac Fac Was Fac Fac Res Res Used RIF Installer . | . . . . . . . . . . . . . Robots Hacked . | . . . . . . . . . . . . . Non-combat . | . . . . . . . . . . . . . Combat . | . . . . . . . . . . . . . Robot Hacks Applied . | . . . . . . . . . . . . . Relay Couplers Released . | . . . . . . . . . . . . . Fabnet Peak Effective % . | . . . . . . . . . . . . . Robots Rewired . | . . . . . . . . . . . . . Allies Hacked . | . . . . . . . . . . . . . Hacks Repelled . | . . . . . . . . . . . . . Allies | -11 -10 -10 -8 -6 -6 -6 -5 -5 -5 -4 -3 -2 -------- Run | Yrd Mat Sub Scr Fac Was Fac Fac Was Fac Fac Res Res Total Allies 19 | . . . . . . . . 19 . . . . Largest Group 19 | . . . . . . . . 19 19 . . . Highest-Rated Group 684 | . . . . . . . . 684 684 . . . Highest-Rated Ally 50 | . . . . . . . . 50 50 . . . Total Orders . | . . . . . . . . . . . . . Ally Attacks 182 | . . . 12 . . . . 73 97 . . . Total Damage 6607 | . . . 536 . . . . 3193 2878 . . . Kills 26 | . . . 5 . . . . 6 15 . . . Allies Corrupted . | . . . . . . . . . . . . . Allies Melted 12 | . . . 12 . . . . . . . . . Turrets Deployed 1 | . . . 1 . . . . . . . . . Intel | -11 -10 -10 -8 -6 -6 -6 -5 -5 -5 -4 -3 -2 ------- Run | Yrd Mat Sub Scr Fac Was Fac Fac Was Fac Fac Res Res Active Infowar (turns) 4308 | . . 822 . . . . 150 232 607 1522 208 767 Optics 546 | . . . . . . . 150 . . . . 396 Sensors 1382 | . . . . . . . . . . 958 207 217 Terrain 2679 | . . . . . . . . 232 607 1337 207 296 Seismic 855 | . . 822 . . . . . . . . . 33 Robot Analysis Total 12 | . 3 . 8 1 . . . . . . . . Derelict Logs Recovered 4 | . . 2 2 . . . . . . . . . Drone Launches . | . . . . . . . . . . . . . Drone Recoveries . | . . . . . . . . . . . . . Exploration | -11 -10 -10 -8 -6 -6 -6 -5 -5 -5 -4 -3 -2 ------------- Run | Yrd Mat Sub Scr Fac Was Fac Fac Was Fac Fac Res Res Turns Passed 11475 | 94 131 2334 2019 1615 367 473 360 413 607 1524 346 1192 Spaces Moved 6543 | 43 78 1277 1415 891 208 214 374 278 332 834 171 428 Core 397 | 2 . . . . . . 296 98 . . . 1 Treads 2445 | 41 78 1057 . . . . . 165 332 705 . 67 Legs 19 | . . . . . . . 4 15 . . . . Wheels 3682 | . . 220 1415 891 208 214 74 . . 129 171 360 Hover . | . . . . . . . . . . . . . Flight . | . . . . . . . . . . . . . Fastest Speed 50 | 50 160 115 100 150 150 150 50 50 160 100 150 145 Average Speed 140 | 154 160 152 109 155 150 155 74 119 160 148 151 192 Slowest Speed 3950 | 160 160 240 115 160 150 210 410 160 160 160 165 3950 Overloaded Moves . | . . . . . . . . . . . . . Propulsion Burnouts . | . . . . . . . . . . . . . Robots Hopped . | . . . . . . . . . . . . . Potential Cave-ins 17 | . . . . . 14 . 3 . . . . . Cave-ins Triggered . | . . . . . . . . . . . . . Exploration Rate (%) 35 | 4 24 58 85 27 99 7 12 88 10 28 6 16 Regions Visited 12 Branch Regions 2 Pre-discovered Areas 1 | . . . 1 . . . . . . . . . Known Exits Taken 3 | . . . 1 . . . . . . 1 1 . Unknown Exits Taken 5 | 1 1 1 . . . 1 . . 1 . . . Scrap Searched 10 | . . 6 4 . . . . . . . . . Spaces Dug 52 | . . 11 . 4 11 2 . . . 14 . 10 Terrain Destroyed 295 | . . 25 36 42 11 60 1 . . 14 . 106 Melee 36 | . . . . 3 11 2 . . . 14 . 6 Projectile 31 | . . 1 6 3 . 5 1 . . . . 15 AOE 227 | . . 24 30 36 . 53 . . . . . 84 Terrain Rammed . | . . . . . . . . . . . . . Walls Destroyed . | . . . . . . . . . . . . . Machines Disabled . | . . . . . . . . . . . . . Actions | -11 -10 -10 -8 -6 -6 -6 -5 -5 -5 -4 -3 -2 --------- Run | Yrd Mat Sub Scr Fac Was Fac Fac Was Fac Fac Res Res Total 8224 | 59 84 1603 1832 1045 246 288 419 361 401 1024 238 624 Wait 956 | 1 . 243 335 70 26 14 . 67 54 84 25 37 Move 6533 | 42 77 1276 1414 891 207 213 374 277 331 833 170 428 Hop . | . . . . . . . . . . . . . Pick Up 112 | 5 2 16 20 19 1 9 6 . 1 9 15 9 Fast Attach 83 | 6 2 1 3 5 . . 8 7 8 27 6 10 Attach 52 | . . 3 1 6 . 5 4 1 . 1 2 29 Detach 23 | . 1 . 1 3 . . . 3 . 2 7 6 Swap 63 | . . 16 7 12 1 7 . . . 4 3 13 Drop 72 | . 1 9 21 2 . 1 4 6 4 17 2 5 Fire 181 | 5 . 37 30 28 . 20 7 . 1 . 8 45 Melee 143 | . . 2 . 9 11 19 14 . 2 46 . 40 Ram 1 | . . . . . . . . . . . . 1 Kick 2 | . . . . . . . 2 . . . . . Crush 3 | . 1 . . . . . . . . 1 . 1 Escape Stasis . | . . . . . . . . . . . . . Rewire . | . . . . . . . . . . . . . Trap . | . . . . . . . . . . . . . Miscellaneous . | . . . . . . . . . . . . . Route ------- -11/Scrapyard -10/Materials -10/Subcaves (discovered 3 exits: [*Mat x2] / *Scr) -8/Scraptown (discovered 2 exits: *Fac x2) -6/Factory (discovered 2 exits: *Low x2) -6/Waste -6/Factory -5/Factory -5/Waste -5/Factory (discovered 2 exits: *Fac x2) -4/Factory (discovered 3 exits: *Res x2 / [Ext]) -3/Research -2/Research History --------- Turn | Location | Event 18 | -11/Scrapyard | Discovered new exit (range 16) 95 | -11/Scrapyard | Entered Materials 96 | -10/Materials | Met a group of wandering Federalists 223 | -10/Materials | Discovered new exit (range 3) 226 | -10/Materials | Entered Subcaves 227 | -10/Subcaves | Continued accompanying wandering Federalists (5) 264 | -10/Subcaves | Discovered new exit (range 5) 297 | -10/Subcaves | Shifting Twisted Machinery released Scrap Shield 309 | -10/Subcaves | Build established: Mutant 519 | -10/Subcaves | Wandering Federalist uncovered a shortcut to Scraptown 914 | -10/Subcaves | Ambushed by angry Subdweller bent on revenge 979 | -10/Subcaves | Ambushed by angry Subdweller bent on revenge 1120 | -10/Subcaves | Learned Materials stockpile data 1570 | -10/Subcaves | Discovered new exit (range 13) 1673 | -10/Subcaves | Visited 4L-MR0's lab 1698 | -10/Subcaves | Found Cargo Legs 1790 | -10/Subcaves | Learned Materials non-interactive machine intel 1848 | -10/Subcaves | A swath of the cavern ceiling suddenly collapsed 2560 | -10/Subcaves | Entered Scraptown 2825 | -8/Scraptown | Heard Great Nut preacher, LISTEN AND RECITE! 2827 | -8/Scraptown | Discovered new exit (range 11) 2882 | -8/Scraptown | Scanned Subdweller tech in exchange for log data 2886 | -8/Scraptown | Learned Research security intel 2887 | -8/Scraptown | Learned location of Warlord (-5) 2928 | -8/Scraptown | Visited Fellowship of the Rings 2959 | -8/Scraptown | Visited Symbiants 3018 | -8/Scraptown | Visited The Evicted 3043 | -8/Scraptown | Visited TADAMA 3061 | -8/Scraptown | Visited Junk Repository 3103 | -8/Scraptown | Visited Cyclists 3123 | -8/Scraptown | Visited UFD Registry 3123 | -8/Scraptown | Registered with UFD as "Powerbox" 3162 | -8/Scraptown | Visited A0-MCA Data Center 3183 | -8/Scraptown | Visited Scrap Suit Storage 3213 | -8/Scraptown | Visited LU-1G1's Boring Crew 3224 | -8/Scraptown | Visited Supply Room 3259 | -8/Scraptown | Visited Analyses Database 3280 | -8/Scraptown | Visited Science Guys 3310 | -8/Scraptown | Visited Curators Association 3342 | -8/Scraptown | Visited Supply Room 3455 | -8/Scraptown | Delivered Scrap Shield to a Scientist 3572 | -8/Scraptown | Given a B rating by A0-MCA 3576 | -8/Scraptown | Found A0-MCA's Component Scanner 3748 | -8/Scraptown | Met Optimus 3748 | -8/Scraptown | Accepted into 0bPrime 4148 | -8/Scraptown | Civil war broke out across Scraptown 4159 | -8/Scraptown | Found Voltaic Drivehammer 4200 | -8/Scraptown | Found Potential Leg 4208 | -8/Scraptown | Lost 4 allies 4209 | -8/Scraptown | Found Vmp. Humpback 4222 | -8/Scraptown | Found Deploy-a-Sentry 4249 | -8/Scraptown | DAS Turret deployed 4271 | -8/Scraptown | Lost 3 allies 4283 | -8/Scraptown | Identified exit to Factory 4463 | -8/Scraptown | Visited Science Testing Area 4508 | -8/Scraptown | Optimus destroyed in the chaos of civil war 4566 | -8/Scraptown | Lost 6 allies 4579 | -8/Scraptown | Entered Factory 4579 | -6/Factory | Evolved 8 slots: Power x1, Propulsion x2, Utility x4, Weapon x1 4669 | -6/Factory | Found Launcher Loader 4853 | -6/Factory | Repaired Hvy. Rocket Launcher 4856 | -6/Factory | Tech Extrapolator generated special schematic: Deep Structural Scanner 4865 | -6/Factory | Build established: Hauler-Gunner 5779 | -6/Factory | Identified exit to Lower Caves 5786 | -6/Factory | Tech Extrapolator generated special schematic: Energy Deflector 5810 | -6/Factory | Build established: Hauler-Tank 6194 | -6/Factory | Sucked down chute 6194 | -6/Factory | Entered Waste 6241 | -6/Waste | Found Broken Imp. Powered Armor 6249 | -6/Waste | Spotted C-40 Crusher 6287 | -6/Waste | Spotted C-40 Crusher 6372 | -6/Waste | Spotted C-40 Crusher 6372 | -6/Waste | Spotted C-40 Crusher 6374 | -6/Waste | Spotted C-40 Crusher 6410 | -6/Waste | Crushed by Compactor (0 parts destroyed, 1 dropped) 6427 | -6/Waste | Spotted C-40 Crusher 6471 | -6/Waste | Discovered new exit (range 11) 6561 | -6/Waste | Entered Factory 6603 | -6/Factory | Build established: Hauler-Mutant 6808 | -6/Factory | Garrison activated, responded to threat 6878 | -6/Factory | Lost 3 parts (1n2w) 6879 | -6/Factory | Destroyed 15 combat bots 6900 | -6/Factory | Discovered new exit (range 14) 6911 | -6/Factory | First assault squad dispatched 7034 | -6/Factory | Entered another Factory area 7034 | -5/Factory | Evolved 2 slots: Utility x2 7184 | -5/Factory | Released all parts (9) 7215 | -5/Factory | Lost 3 parts (2n1u) 7377 | -5/Factory | System corruption reached 10% 7394 | -5/Factory | Sucked down chute 7394 | -5/Factory | Entered Waste 7399 | -5/Waste | Spotted C-40 Crusher 7402 | -5/Waste | Spotted C-40 Crusher 7414 | -5/Waste | Spotted C-40 Crusher 7415 | -5/Waste | Spotted C-40 Crusher 7424 | -5/Waste | Spotted C-40 Crusher 7426 | -5/Waste | Spotted C-40 Crusher 7442 | -5/Waste | Warlord forces began an assault 7460 | -5/Waste | Allies destroyed C-40 Crusher 7460 | -5/Waste | Allies destroyed C-40 Crusher 7487 | -5/Waste | Build established: Mutant 7574 | -5/Waste | Found Fusion Bomb Launcher 7741 | -5/Waste | Discovered new exit (range 21) 7807 | -5/Waste | Entered Factory 7807 | -5/Factory | Accompanied by 19 allies 7846 | -5/Factory | Discovered new exit (range 9) 7883 | -5/Factory | Discovered new exit (range 21) 7899 | -5/Factory | Spotted B-75 Beast 7909 | -5/Factory | Core integrity fell below 50% 7951 | -5/Factory | Lost 12 allies 8082 | -5/Factory | Garrison activated, responded to threat 8225 | -5/Factory | Build established: Scavenger-Mutant 8268 | -5/Factory | Lost 4 allies 8414 | -5/Factory | Entered another Factory area 8414 | -4/Factory | Evolved 2 slots: Utility x1, Weapon x1 8445 | -4/Factory | Discovered new exit (range 13) 8893 | -4/Factory | Found Prototype Launcher 8893 | -4/Factory | Identified Scatter Rocket Array 8907 | -4/Factory | Discovered new exit (range 22) 9289 | -4/Factory | Build established: Assassin 9403 | -4/Factory | Repaired Hvy. Treads 9534 | -4/Factory | Discovered new exit (range 22) 9610 | -4/Factory | Identified exit to Research 9938 | -4/Factory | Entered Research 9938 | -3/Research | Evolved 2 slots: Utility x2 9998 | -3/Research | Build established: Hauler-Gladiator 10264 | -3/Research | Discovered new exit (range 11) 10282 | -3/Research | Identified exit to Research 10284 | -3/Research | Entered another Research area 10284 | -2/Research | Evolved 2 slots: Weapon x2 10359 | -2/Research | Central database locked down 10650 | -2/Research | Lost 11 parts (3n3u5w) 10736 | -2/Research | Lost 5 parts (1p1n3u) 10890 | -2/Research | Garrison activated, responded to threat 10936 | -2/Research | Lost 4 parts (1p1n2u) 11051 | -2/Research | Build established: Hauler-Gunner 11080 | -2/Research | Found Prototype Processor 11080 | -2/Research | Identified Spectral Analyzer 11166 | -2/Research | System corruption reached 10% 11192 | -2/Research | Core integrity fell below 50% 11222 | -2/Research | System corruption reached 30% 11237 | -2/Research | Lost 7 parts (3n4w) 11279 | -2/Research | Core integrity fell below 20% 11476 | -2/Research | Destroyed by H-81 Overseer with Heavy Linear Accelerator Last Messages --------------- 11464_ W-44 Eye sends out distress signal. 11464_ Slug penetrates Wall. 11464_ Com. Wheel destroyed. 11465_ Wall collapses. 11466_ Vmp. Humpback cannibalizes 14 core integrity to repair itself (+28). 11467_ Slug penetrates Wall. 11467_ Com. Wheel destroyed. 11472_ T3/LEHG#/JCJJNFXWBE/%R 11473_ ALERT: Potential suspicious activity detected, Programmers report to Research Zone 6H. 11473_ Penetrated by Slug. 11473_ Slug penetrates Wall. 11474_ Force Lance follow-up attack on H-88 Terminator. 11474_ Arm. Medium Treads destroyed. 11475_ Slug penetrates Wall. 11476_ Penetrated by Slug. 11476_ Vmp. Humpback destroyed. 11476_ Penetrated by Slug. 11476_ Biometal Medium Treads destroyed. Map ----- +----------------------------------------------------+ | ??????????????????????????????# # #?? | | ??????????????????????????????# ###+#""" ###?? | | ??????????????????????????????# #?# #"""S""#???? | | ??????????????????????????????# #?# #""""""#???? | | ??????????????????????????????# #?# ########???? | | ??????????????????????????????# ###/#######????? | | ??????????????????????????????# # = #????? | | ??????????????????????????????# *# #????? | | ??????????????????????????????# !*#[ #????? | | ???????????????????????? # #!! #????? | | ?????????????????????# # %+%%! #????? | | ?????????????????????# ????# #!! #????? | | ?????????????????????#???##+### #* =#????? | | ?????????????????????????# # #????? | | ?????????????????????????# ###########????? | | ?????????????????????????# w #??????????????? | | ?????????????????????????# ###+#######?????????? | | ??????????????????#??????# R# ! #?????????? | | ??????????????????# ?????# # #?????????? | | ??????????????????# ????# x # #?????????? | | ??????????????????+ ???# # "F "" #?????????? | | ??????????????????# ??# # """"" #?????????? | | ??????????????????# ### # """"" #?????????? | | ??????????????????# R # #?????????? | | ????????????????????# =!* # = #?????????? | | ????????????????????# *@% #"#########?????????? | | ????????????????????# H=#h###"###???????????????? | | ???????????????????## h#" #???????????????? | | ???????????????????# #= %% #???????????????? | | ???????????????????# " "" #???????????????? | | ???????????????" ""Y #???????????????? | | ?????????????# ### #""" #???????????????? | | ?????????? ????# # #???????????????? | | ?????? ???????####### #???????????????? | | ????? ? ????????????????# #???????????????? | | ?????????????????????????# #???????????????? | | ?????????????????????????# #???????????????? | | ?????????????????????????# !#???????????????? | | ?????????????????????????#########???????????????? | | ?????????????????????????????????????????????????? | | ?????????????????????????????????????????????????? | | ?????????????????????????????????????????????????? | | ?????????????????????????????????????????????????? | | ?????????????????????????????????????????????????? | | ?????????????????????????????????????????????????? | | ?????????????????????????????????????????????????? | | ?????????????????????????????????????????????????? | | ?????????????????????????????????????????????????? | | ?????????????????????????????????????????????????? | | ?????????????????????????????????????????????????? | +----------------------------------------------------+ Best States ------------- Heat Dissipation 100 Energy Generation 42 Energy Capacity 530 Matter Stores 300 Matter Capacity 300 Sight Range 24 Robot Scan Range 16 Terrain Scan Range 24 Terrain Scan Density 210 Additional Mass Support 9 Armor Coverage 600 Resistance: EM 20 Evasion (%) 70 Melee Accuracy 8 Target Analysis 8 Core Analysis 6 Recoil Reduction 4 Offensive Hacking 22 Defensive Hacking 10 Item Schematics ----------------- Hcp. Storage Unit | -10/Materials | Hacked Mak. Power Source | -6/Factory | Extrapolated Deep Structural Scanner | -6/Factory | Extrapolated Hvy. Beamcaster | -6/Factory | Extrapolated Mak. Coolant Network | -6/Factory | Extrapolated Beamcaster | -6/Factory | Extrapolated Adv. System Restoration Module | -6/Factory | Hacked Mak. Hacking Suite | -6/Factory | Extrapolated Energy Deflector | -6/Factory | Extrapolated Mak. Core Shielding | -5/Factory | Extrapolated Bolt Gun | -3/Research | Scanalyzed Robot Schematics ------------------ None Fabricated ------------ Nothing Repaired ---------- Hvy. Rocket Launcher | 30% | -6/Factory Hvy. Treads | 38% | -4/Factory Studied --------- Arm. Huge Wheel | -6/Factory | Hacked Hyp. Railgun | -2/Research | Hacked Alien Tech Used ----------------- None Achievements -------------- Thor Challenges ------------ None Game ------ Seed BiometalFocalClaws Manual? 0 Play Time 01:14:43 Cumulative 2052.8 hours Start 2025.12.08 @ 02:05:48 End 2025.12.08 @ 03:19:56 Sessions 1 Manual Loads 0 Difficulty Rogue Special Mode None Game No. 1326 Rogue 1322 Adventurer 4 Explorer 0 Win Type - Total 278 Types 208/13/21/10/3/1/4/10/5/3 Lore% 98 Gallery% 96 Achievement% 87 Wizard Run 0 Options --------- Layout 2 ASCII 0 Keyboard 1 Movement Vi Keybinds 0 Fullscreen 0 Font 24/Terminus Map View 59x48 Zoom Use 0% Tactical HUD 1 Map Filters NONE Filters NONE Steam 1 RUN: eea369ce-2220-48d8-98cf-b00b76308b2f